[Event "Live Chess"]
[Site "Chess.com"]
[Date "2023.05.21"]
[Round "-"]
[White "PantherCal"]
[Black "mach247"]
[Result "1-0"]
[WhiteElo "1860"]
[BlackElo "1330"]
[TimeControl "300"]
[EndTime "7:51:00 PDT"]
[Termination "PantherCal won by resignation"]

1. e4 {[%clk 0:04:59.4]} 1... d5 {[%clk 0:04:59.3]} 2. exd5 {[%clk 0:04:59.3]}
2... Qxd5 {[%clk 0:04:59.2]} 3. d4 {[%clk 0:04:58.2]} 3... Nf6 {[%clk 0:04:58]}
4. Nf3 {[%clk 0:04:57.1]} 4... Bg4 {[%clk 0:04:56.1]} 5. Be2 {[%clk 0:04:56.3]}
5... c6 {[%clk 0:04:55.2]} 6. c4 {[%clk 0:04:54.3]} 6... Qd8 {[%clk 0:04:53.6]}
7. Be3 {[%clk 0:04:53.3]} 7... e6 {[%clk 0:04:51.2]} 8. Nc3 {[%clk 0:04:52.4]}
8... Nbd7 {[%clk 0:04:50.2]} 9. h3 {[%clk 0:04:51.9]} 9... Bxf3 {[%clk
0:04:49.3]} 10. Bxf3 {[%clk 0:04:50.2]} 10... Bd6 {[%clk 0:04:44.7]} 11. Qd2
{[%clk 0:04:49.2]} 11... O-O {[%clk 0:04:43.3]} 12. O-O {[%clk 0:04:48.1]} 12...
Qc7 {[%clk 0:04:34.8]} 13. Rfd1 {[%clk 0:04:45.7]} 13... Nb6 {[%clk 0:04:32.5]}
14. c5 {[%clk 0:04:41.3]} 14... Nc4 {[%clk 0:04:32]} 15. Qe2 {[%clk 0:04:39.9]}
15... Nxe3 {[%clk 0:04:24.6]} 16. cxd6 {[%clk 0:04:38.9]} 16... Qxd6 {[%clk
0:04:23.6]} 17. fxe3 {[%clk 0:04:34.7]} 17... a5 {[%clk 0:04:14.1]} 18. Ne4
{[%clk 0:04:31.8]} 18... Nxe4 {[%clk 0:04:12.1]} 19. Bxe4 {[%clk 0:04:31.7]}
19... a4 {[%clk 0:04:09.8]} 20. Rf1 {[%clk 0:04:26.9]} 20... f5 {[%clk
0:04:02.6]} 21. Bd3 {[%clk 0:04:22.6]} 21... Rf6 {[%clk 0:03:53.8]} 22. Qf3
{[%clk 0:04:14.1]} 22... Qb4 {[%clk 0:03:36.6]} 23. Rf2 {[%clk 0:04:02.6]} 23...
Raf8 {[%clk 0:03:35.1]} 24. Raf1 {[%clk 0:03:57.8]} 24... g5 {[%clk 0:03:33]}
25. Qe2 {[%clk 0:03:54.1]} 25... a3 {[%clk 0:03:18]} 26. bxa3 {[%clk 0:03:51.9]}
26... Qxa3 {[%clk 0:03:16.6]} 27. Qc2 {[%clk 0:03:50.8]} 27... Qe7 {[%clk
0:03:02.7]} 28. e4 {[%clk 0:03:37.7]} 28... f4 {[%clk 0:02:56.6]} 29. e5 {[%clk
0:03:36.8]} 29... R6f7 {[%clk 0:02:53.1]} 30. Qc5 {[%clk 0:03:26.2]} 30... Qd7
{[%clk 0:02:47.6]} 31. Be2 {[%clk 0:03:22.4]} 31... Rg7 {[%clk 0:02:25.1]} 32.
Bg4 {[%clk 0:03:18.7]} 32... Rb8 {[%clk 0:02:05.2]} 33. Qc4 {[%clk 0:03:13.1]}
33... Re7 {[%clk 0:02:00.1]} 34. g3 {[%clk 0:03:10.7]} 34... b5 {[%clk
0:01:57.9]} 35. Qb3 {[%clk 0:03:09]} 35... fxg3 {[%clk 0:01:44.2]} 36. Rf6
{[%clk 0:03:03.6]} 36... Qxd4+ {[%clk 0:01:42.4]} 37. Kg2 {[%clk 0:03:02.5]}
37... Qxe5 {[%clk 0:01:30.2]} 38. Rxe6 {[%clk 0:03:00.4]} 38... Rxe6 {[%clk
0:01:28.9]} 39. Qxe6+ {[%clk 0:02:59.9]} 39... Qxe6 {[%clk 0:01:27.1]} 40. Bxe6+
{[%clk 0:02:59.8]} 40... Kg7 {[%clk 0:01:26]} 41. Kxg3 {[%clk 0:02:59.2]} 1-0

[Event "Live Chess"]
[Site "Chess.com"]
[Date "2023.05.21"]
[Round "-"]
[White "lateforthesky"]
[Black "f4nomore"]
[Result "1-0"]
[WhiteElo "2091"]
[BlackElo "1406"]
[TimeControl "300"]
[EndTime "7:51:07 PDT"]
[Termination "lateforthesky won on time"]

1. e4 {[%clk 0:04:58.7]} 1... g6 {[%clk 0:04:59.9]} 2. d4 {[%clk 0:04:56.8]}
2... Bg7 {[%clk 0:04:58.7]} 3. c3 {[%clk 0:04:55.5]} 3... d6 {[%clk 0:04:56.7]}
4. Bd3 {[%clk 0:04:54.5]} 4... Nf6 {[%clk 0:04:53.8]} 5. Nd2 {[%clk 0:04:53]}
5... O-O {[%clk 0:04:52.5]} 6. f4 {[%clk 0:04:51.6]} 6... Nbd7 {[%clk
0:04:51.3]} 7. Ngf3 {[%clk 0:04:50.5]} 7... c5 {[%clk 0:04:50.2]} 8. O-O {[%clk
0:04:48.9]} 8... cxd4 {[%clk 0:04:48.2]} 9. cxd4 {[%clk 0:04:47.5]} 9... Nb6
{[%clk 0:04:46.8]} 10. Kh1 {[%clk 0:04:46.5]} 10... Bg4 {[%clk 0:04:28.7]} 11.
h3 {[%clk 0:04:44.3]} 11... Bxf3 {[%clk 0:04:26.7]} 12. Nxf3 {[%clk 0:04:42.5]}
12... Nfd7 {[%clk 0:04:12.8]} 13. Be3 {[%clk 0:04:38.7]} 13... e5 {[%clk
0:04:10.2]} 14. Qe2 {[%clk 0:04:26.7]} 14... exd4 {[%clk 0:04:04.5]} 15. Bxd4
{[%clk 0:04:11.8]} 15... Nf6 {[%clk 0:04:02]} 16. Rad1 {[%clk 0:04:08]} 16...
Nh5 {[%clk 0:03:52.3]} 17. Qe3 {[%clk 0:03:45.4]} 17... Ng3+ {[%clk 0:03:45.9]}
18. Kh2 {[%clk 0:03:44.4]} 18... Nxf1+ {[%clk 0:03:44.4]} 19. Rxf1 {[%clk
0:03:44.2]} 19... Re8 {[%clk 0:03:37.6]} 20. Bxg7 {[%clk 0:03:36.7]} 20... Kxg7
{[%clk 0:03:35.7]} 21. Nd4 {[%clk 0:03:31.3]} 21... d5 {[%clk 0:03:22.9]} 22. e5
{[%clk 0:03:29.2]} 22... Nc4 {[%clk 0:03:11.8]} 23. Qe2 {[%clk 0:03:21.4]} 23...
Qb6 {[%clk 0:02:58.2]} 24. Nb3 {[%clk 0:03:17.6]} 24... f6 {[%clk 0:02:48.6]}
25. Bxc4 {[%clk 0:03:09.2]} 25... dxc4 {[%clk 0:02:43.8]} 26. Qxc4 {[%clk
0:03:08.2]} 26... fxe5 {[%clk 0:02:32.1]} 27. fxe5 {[%clk 0:03:06.2]} 27... Rac8
{[%clk 0:02:24.6]} 28. Rf7+ {[%clk 0:02:53]} 28... Kh8 {[%clk 0:02:17.9]} 29.
Qf4 {[%clk 0:02:51.2]} 29... Qe6 {[%clk 0:02:07.6]} 30. Rxb7 {[%clk 0:02:38.9]}
30... Qxe5 {[%clk 0:02:00.4]} 31. Qxe5+ {[%clk 0:02:37.3]} 31... Rxe5 {[%clk
0:01:58.2]} 32. Rxa7 {[%clk 0:02:30.7]} 32... Re2 {[%clk 0:01:55.3]} 33. Nd4
{[%clk 0:02:24.3]} 33... Rxb2 {[%clk 0:01:49.2]} 34. Ne6 {[%clk 0:02:15.9]}
34... h5 {[%clk 0:01:40.3]} 35. Nf4 {[%clk 0:02:12.7]} 35... Rc6 {[%clk
0:01:32.9]} 36. a4 {[%clk 0:02:09]} 36... Rb4 {[%clk 0:01:17.1]} 37. Nd5 {[%clk
0:02:01.4]} 37... Rb2 {[%clk 0:01:09.1]} 38. a5 {[%clk 0:01:56.5]} 38... Rcc2
{[%clk 0:01:07.3]} 39. Nf6 {[%clk 0:01:54.2]} 39... Rxg2+ {[%clk 0:00:53.9]} 40.
Kh1 {[%clk 0:01:53.1]} 40... Rh2+ {[%clk 0:00:35.2]} 41. Kg1 {[%clk 0:01:52]}
41... Rbg2+ {[%clk 0:00:31]} 42. Kf1 {[%clk 0:01:51.1]} 42... Rf2+ {[%clk
0:00:24.1]} 43. Kg1 {[%clk 0:01:50.3]} 43... Rxf6 {[%clk 0:00:15.2]} 44. Kxh2
{[%clk 0:01:49.1]} 44... Rf2+ {[%clk 0:00:09.8]} 45. Kg3 {[%clk 0:01:47.7]}
45... Ra2 {[%clk 0:00:07.8]} 46. Kf4 {[%clk 0:01:45.2]} 46... Ra3 {[%clk
0:00:05.6]} 47. h4 {[%clk 0:01:43]} 47... Ra4+ {[%clk 0:00:04]} 48. Kg5 {[%clk
0:01:41.6]} 48... Rg4+ {[%clk 0:00:01.4]} 49. Kh6 {[%clk 0:01:40.8]} 1-0

[Event "Live Chess"]
[Site "Chess.com"]
[Date "2023.05.21"]
[Round "-"]
[White "LaupMiths"]
[Black "wadsy27"]
[Result "0-1"]
[WhiteElo "1807"]
[BlackElo "2539"]
[TimeControl "300"]
[EndTime "7:51:10 PDT"]
[Termination "wadsy27 won by resignation"]

1. d4 {[%clk 0:04:48.3]} 1... Nf6 {[%clk 0:04:57.8]} 2. Nf3 {[%clk 0:04:44.1]}
2... c5 {[%clk 0:04:56]} 3. c3 {[%clk 0:04:41.7]} 3... d5 {[%clk 0:04:54.2]} 4.
g3 {[%clk 0:04:38.5]} 4... Nc6 {[%clk 0:04:46]} 5. Bg2 {[%clk 0:04:37.1]} 5...
cxd4 {[%clk 0:04:44.8]} 6. cxd4 {[%clk 0:04:35.4]} 6... Bf5 {[%clk 0:04:44]} 7.
O-O {[%clk 0:04:33.6]} 7... e6 {[%clk 0:04:43.2]} 8. Nc3 {[%clk 0:04:32]} 8...
h6 {[%clk 0:04:39.4]} 9. Qb3 {[%clk 0:04:28.2]} 9... a6 {[%clk 0:04:21.1]} 10.
Qxb7 {[%clk 0:04:13.9]} 10... Na5 {[%clk 0:04:19.9]} 11. Qxa8 {[%clk 0:03:41.8]}
11... Qxa8 {[%clk 0:04:19.8]} 12. Bf4 {[%clk 0:03:35.5]} 12... Be7 {[%clk
0:04:17.4]} 13. a3 {[%clk 0:03:33.7]} 13... O-O {[%clk 0:04:15.1]} 14. Rac1
{[%clk 0:03:32.1]} 14... Nc4 {[%clk 0:04:14.2]} 15. Ne5 {[%clk 0:03:24.8]} 15...
Nxe5 {[%clk 0:04:12.3]} 16. Bxe5 {[%clk 0:03:23.3]} 16... Ne4 {[%clk 0:04:10.6]}
17. Na4 {[%clk 0:03:19]} 17... Bd6 {[%clk 0:04:07.7]} 18. f3 {[%clk 0:03:06.9]}
18... Bxe5 {[%clk 0:04:05.4]} 19. fxe4 {[%clk 0:03:05.5]} 19... Bxd4+ {[%clk
0:04:04.3]} 0-1

[Event "Live Chess"]
[Site "Chess.com"]
[Date "2023.05.21"]
[Round "-"]
[White "nigelst"]
[Black "KeithArkell"]
[Result "0-1"]
[WhiteElo "1702"]
[BlackElo "2462"]
[TimeControl "300"]
[EndTime "7:51:16 PDT"]
[Termination "KeithArkell won on time"]

1. e4 {[%clk 0:04:57.9]} 1... e6 {[%clk 0:04:58.1]} 2. d4 {[%clk 0:04:56.2]}
2... d5 {[%clk 0:04:57.2]} 3. exd5 {[%clk 0:04:55.2]} 3... Qxd5 {[%clk
0:04:54.5]} 4. Nf3 {[%clk 0:04:52]} 4... Nf6 {[%clk 0:04:53.2]} 5. c4 {[%clk
0:04:47.7]} 5... Qd8 {[%clk 0:04:48.3]} 6. Nc3 {[%clk 0:04:45]} 6... Be7 {[%clk
0:04:47.3]} 7. Bd3 {[%clk 0:04:42.4]} 7... O-O {[%clk 0:04:46.4]} 8. O-O {[%clk
0:04:40.4]} 8... a6 {[%clk 0:04:45.7]} 9. Bf4 {[%clk 0:04:37.6]} 9... b5 {[%clk
0:04:44.5]} 10. cxb5 {[%clk 0:04:31.8]} 10... axb5 {[%clk 0:04:43.7]} 11. Bxb5
{[%clk 0:04:29.3]} 11... Ba6 {[%clk 0:04:41.2]} 12. Bxa6 {[%clk 0:04:27.5]}
12... Nxa6 {[%clk 0:04:39.9]} 13. Ne5 {[%clk 0:04:21.9]} 13... Nb4 {[%clk
0:04:32.3]} 14. a3 {[%clk 0:04:14.9]} 14... Nbd5 {[%clk 0:04:31.4]} 15. Bg3
{[%clk 0:04:08.3]} 15... Nxc3 {[%clk 0:04:26.8]} 16. bxc3 {[%clk 0:04:06.6]}
16... Rxa3 {[%clk 0:04:21.5]} 17. Nc6 {[%clk 0:03:58.3]} 17... Qd7 {[%clk
0:04:18.9]} 18. Nxe7+ {[%clk 0:03:56.2]} 18... Qxe7 {[%clk 0:04:18]} 19. Rxa3
{[%clk 0:03:43]} 19... Qxa3 {[%clk 0:04:17.3]} 20. Qa1 {[%clk 0:03:32.1]} 20...
Qxa1 {[%clk 0:04:14.8]} 21. Rxa1 {[%clk 0:03:29.8]} 21... Ne4 {[%clk 0:04:07.5]}
22. Ra7 {[%clk 0:03:07.5]} 22... Nxc3 {[%clk 0:04:02.8]} 23. Rxc7 {[%clk
0:03:03.8]} 23... Nd5 {[%clk 0:04:01.4]} 24. Ra7 {[%clk 0:02:56.4]} 24... g5
{[%clk 0:03:59.2]} 25. h4 {[%clk 0:02:48.9]} 25... h6 {[%clk 0:03:58.1]} 26.
hxg5 {[%clk 0:02:46.9]} 26... hxg5 {[%clk 0:03:58]} 27. Bd6 {[%clk 0:02:12.6]}
27... Rd8 {[%clk 0:03:53.6]} 28. Bc5 {[%clk 0:02:10.7]} 28... Kg7 {[%clk
0:03:51.5]} 29. Kf1 {[%clk 0:02:00.7]} 29... Rb8 {[%clk 0:03:46.5]} 30. g3
{[%clk 0:01:56.6]} 30... g4 {[%clk 0:03:45.1]} 31. Ra1 {[%clk 0:01:17.5]} 31...
Rb2 {[%clk 0:03:42.8]} 32. Re1 {[%clk 0:01:08.5]} 32... Kg6 {[%clk 0:02:47]} 33.
Re2 {[%clk 0:01:02.7]} 33... Rb1+ {[%clk 0:02:42.4]} 34. Re1 {[%clk 0:00:56.1]}
34... Rxe1+ {[%clk 0:02:40.8]} 35. Kxe1 {[%clk 0:00:54.4]} 35... Kf5 {[%clk
0:02:40.1]} 36. Ke2 {[%clk 0:00:44.1]} 36... Ke4 {[%clk 0:02:38.2]} 37. Ba7
{[%clk 0:00:30]} 37... Nc3+ {[%clk 0:02:35]} 38. Kd2 {[%clk 0:00:27.2]} 38...
Nb5 {[%clk 0:02:33.9]} 39. Bc5 {[%clk 0:00:20.5]} 39... Nxd4 {[%clk 0:02:32.9]}
40. Kc3 {[%clk 0:00:16.1]} 40... e5 {[%clk 0:02:27.8]} 41. Bd6 {[%clk
0:00:12.9]} 41... Kd5 {[%clk 0:02:26.6]} 42. Bb8 {[%clk 0:00:10.4]} 42... f5
{[%clk 0:02:18.4]} 43. Kd3 {[%clk 0:00:08.6]} 43... Nb3 {[%clk 0:02:08.3]} 44.
Kc3 {[%clk 0:00:06.9]} 44... Nc5 {[%clk 0:02:05.8]} 45. Kd2 {[%clk 0:00:05.2]}
45... Ke4 {[%clk 0:02:02.7]} 46. Ke2 {[%clk 0:00:03.7]} 46... Nb3 {[%clk
0:01:55.5]} 47. Ba7 {[%clk 0:00:01.6]} 47... Nd4+ {[%clk 0:01:54.6]} 0-1

[Event "Live Chess"]
[Site "Chess.com"]
[Date "2023.05.21"]
[Round "-"]
[White "MarkCheck"]
[Black "Daniel_Gliddon_FA"]
[Result "1-0"]
[WhiteElo "1583"]
[BlackElo "1231"]
[TimeControl "300"]
[EndTime "7:51:21 PDT"]
[Termination "MarkCheck won by checkmate"]

1. c4 {[%clk 0:04:57.9]} 1... e5 {[%clk 0:04:56.8]} 2. g3 {[%clk 0:04:57]} 2...
d5 {[%clk 0:04:55.2]} 3. cxd5 {[%clk 0:04:53.1]} 3... Nf6 {[%clk 0:04:53.8]} 4.
Bg2 {[%clk 0:04:51.2]} 4... Bf5 {[%clk 0:04:48]} 5. Nc3 {[%clk 0:04:41.8]} 5...
Nbd7 {[%clk 0:04:43.7]} 6. d3 {[%clk 0:04:27.9]} 6... Bc5 {[%clk 0:04:40.8]} 7.
e3 {[%clk 0:04:25.2]} 7... Ng4 {[%clk 0:04:34.9]} 8. h3 {[%clk 0:03:51.8]} 8...
Ngf6 {[%clk 0:04:22.6]} 9. a3 {[%clk 0:03:48.3]} 9... O-O {[%clk 0:04:15.5]} 10.
Nge2 {[%clk 0:03:40.9]} 10... Re8 {[%clk 0:04:06.2]} 11. e4 {[%clk 0:03:30.1]}
11... Bg6 {[%clk 0:04:02.1]} 12. O-O {[%clk 0:03:27.8]} 12... Nb6 {[%clk
0:03:52.4]} 13. b4 {[%clk 0:03:15.9]} 13... Bd4 {[%clk 0:03:45.5]} 14. Nxd4
{[%clk 0:03:15.2]} 14... exd4 {[%clk 0:03:38.4]} 15. Ne2 {[%clk 0:03:12.4]}
15... Qd6 {[%clk 0:03:30.8]} 16. Bf4 {[%clk 0:03:04.3]} 16... Qe7 {[%clk
0:03:27.2]} 17. Rc1 {[%clk 0:03:02.2]} 17... Nbxd5 {[%clk 0:03:18.7]} 18. exd5
{[%clk 0:02:16.2]} 18... Qxe2 {[%clk 0:03:14.8]} 19. Qxe2 {[%clk 0:02:08.1]}
19... Rxe2 {[%clk 0:03:11.2]} 20. Rfe1 {[%clk 0:01:50.2]} 20... Rxe1+ {[%clk
0:03:05.7]} 21. Rxe1 {[%clk 0:01:48.4]} 21... Nxd5 {[%clk 0:03:03.3]} 22. Bxd5
{[%clk 0:01:43.5]} 22... c6 {[%clk 0:02:58.3]} 23. Be4 {[%clk 0:01:41.2]} 23...
Bxe4 {[%clk 0:02:56.7]} 24. Rxe4 {[%clk 0:01:39]} 24... Rd8 {[%clk 0:02:50.9]}
25. Bc7 {[%clk 0:01:37.3]} 25... Rf8 {[%clk 0:02:41.9]} 26. Rxd4 {[%clk
0:01:32.5]} 26... f5 {[%clk 0:02:38]} 27. Rd8 {[%clk 0:01:26.2]} 27... Rxd8
{[%clk 0:02:36.4]} 28. Bxd8 {[%clk 0:01:25.4]} 28... Kf7 {[%clk 0:02:35.3]} 29.
f4 {[%clk 0:01:24.3]} 29... Ke6 {[%clk 0:02:33.7]} 30. Kf2 {[%clk 0:01:16.8]}
30... Kd5 {[%clk 0:02:32.4]} 31. a4 {[%clk 0:01:05.3]} 31... Kd4 {[%clk
0:02:30.9]} 32. Ke2 {[%clk 0:01:03.4]} 32... Kc3 {[%clk 0:02:23.9]} 33. Be7
{[%clk 0:00:57.2]} 33... Kb3 {[%clk 0:02:19.1]} 34. a5 {[%clk 0:00:56.6]} 34...
b6 {[%clk 0:02:16.5]} 35. axb6 {[%clk 0:00:54]} 35... axb6 {[%clk 0:02:15]} 36.
Ke3 {[%clk 0:00:49.3]} 36... b5 {[%clk 0:02:12.9]} 37. Kd4 {[%clk 0:00:47.7]}
37... g6 {[%clk 0:02:08.5]} 38. g4 {[%clk 0:00:45.1]} 38... Ka4 {[%clk
0:01:59.8]} 39. gxf5 {[%clk 0:00:42.7]} 39... gxf5 {[%clk 0:01:56.7]} 40. Ke5
{[%clk 0:00:42.1]} 40... Kb3 {[%clk 0:01:55.5]} 41. Kxf5 {[%clk 0:00:40.8]}
41... Kc3 {[%clk 0:01:54.6]} 42. Ke4 {[%clk 0:00:39.9]} 42... Kd2 {[%clk
0:01:50.6]} 43. f5 {[%clk 0:00:39]} 43... Ke2 {[%clk 0:01:49.6]} 44. f6 {[%clk
0:00:38.5]} 44... Kf2 {[%clk 0:01:48.4]} 45. f7 {[%clk 0:00:37.7]} 45... Ke2
{[%clk 0:01:47.5]} 46. f8=Q {[%clk 0:00:36.4]} 46... Kd2 {[%clk 0:01:46.1]} 47.
Qf6 {[%clk 0:00:28.8]} 47... Kc2 {[%clk 0:01:41.2]} 48. Ke3 {[%clk 0:00:23.6]}
48... Kb3 {[%clk 0:01:37.3]} 49. Kd2 {[%clk 0:00:19.6]} 49... Ka3 {[%clk
0:01:31.9]} 50. Qc3+ {[%clk 0:00:17.1]} 50... Ka4 {[%clk 0:01:30.5]} 51. Qc2+
{[%clk 0:00:15.7]} 51... Ka3 {[%clk 0:01:28.7]} 52. Qc1+ {[%clk 0:00:14.3]}
52... Kb3 {[%clk 0:01:27.1]} 53. Qc2+ {[%clk 0:00:13.7]} 53... Ka3 {[%clk
0:01:26]} 54. Kc3 {[%clk 0:00:12.7]} 54... c5 {[%clk 0:01:21.9]} 55. Qb3# {[%clk
0:00:12.2]} 1-0

[Event "Live Chess"]
[Site "Chess.com"]
[Date "2023.05.21"]
[Round "-"]
[White "LL220284LL"]
[Black "stevochess11"]
[Result "1-0"]
[WhiteElo "2226"]
[BlackElo "1666"]
[TimeControl "300"]
[EndTime "7:51:26 PDT"]
[Termination "LL220284LL won by resignation"]

1. c4 {[%clk 0:04:58.5]} 1... c5 {[%clk 0:04:58.7]} 2. g3 {[%clk 0:04:57.8]}
2... Nf6 {[%clk 0:04:55]} 3. Bg2 {[%clk 0:04:52.2]} 3... e6 {[%clk 0:04:52.4]}
4. Nf3 {[%clk 0:04:51.1]} 4... Be7 {[%clk 0:04:51.4]} 5. O-O {[%clk 0:04:49.6]}
5... O-O {[%clk 0:04:50.2]} 6. b3 {[%clk 0:04:49.5]} 6... d5 {[%clk 0:04:45.6]}
7. cxd5 {[%clk 0:04:45.9]} 7... exd5 {[%clk 0:04:44]} 8. Bb2 {[%clk 0:04:44.9]}
8... Nc6 {[%clk 0:04:41.5]} 9. d4 {[%clk 0:04:41.9]} 9... cxd4 {[%clk
0:04:39.7]} 10. Nxd4 {[%clk 0:04:41.8]} 10... Nxd4 {[%clk 0:04:36.4]} 11. Qxd4
{[%clk 0:04:40.1]} 11... Be6 {[%clk 0:04:32.8]} 12. Nc3 {[%clk 0:04:38.1]} 12...
Rc8 {[%clk 0:04:27.5]} 13. Rfd1 {[%clk 0:04:33.8]} 13... Bc5 {[%clk 0:04:25.5]}
14. Qd2 {[%clk 0:04:31.8]} 14... Ng4 {[%clk 0:04:17.6]} 15. e3 {[%clk
0:04:29.3]} 15... Qb6 {[%clk 0:03:54.6]} 16. Na4 {[%clk 0:04:25.5]} 16... Bxe3
{[%clk 0:03:48.1]} 17. Nxb6 {[%clk 0:04:20.8]} 1-0

[Event "Live Chess"]
[Site "Chess.com"]
[Date "2023.05.21"]
[Round "-"]
[White "Hacker_2009"]
[Black "friarnator"]
[Result "1-0"]
[WhiteElo "1963"]
[BlackElo "2028"]
[TimeControl "300"]
[EndTime "7:51:29 PDT"]
[Termination "Hacker_2009 won on time"]

1. d4 {[%clk 0:04:57.3]} 1... Nf6 {[%clk 0:04:57.2]} 2. Nf3 {[%clk 0:04:56.5]}
2... e6 {[%clk 0:04:55.3]} 3. c4 {[%clk 0:04:54.8]} 3... d5 {[%clk 0:04:52.7]}
4. e3 {[%clk 0:04:53.7]} 4... Be7 {[%clk 0:04:49.5]} 5. Nc3 {[%clk 0:04:52.3]}
5... O-O {[%clk 0:04:48.3]} 6. Bd3 {[%clk 0:04:50.9]} 6... dxc4 {[%clk
0:04:45.1]} 7. Bxc4 {[%clk 0:04:49.8]} 7... a6 {[%clk 0:04:44.8]} 8. O-O {[%clk
0:04:48.1]} 8... b5 {[%clk 0:04:43.3]} 9. Bd3 {[%clk 0:04:47.2]} 9... Bb7 {[%clk
0:04:42]} 10. b3 {[%clk 0:04:45.1]} 10... Nbd7 {[%clk 0:04:39.7]} 11. Bb2 {[%clk
0:04:44.1]} 11... c5 {[%clk 0:04:38.4]} 12. Rc1 {[%clk 0:04:42.2]} 12... Rc8
{[%clk 0:04:33.4]} 13. Bb1 {[%clk 0:04:40.6]} 13... Nb6 {[%clk 0:04:17.2]} 14.
Qe2 {[%clk 0:04:38.4]} 14... Nbd5 {[%clk 0:03:58.4]} 15. Nxd5 {[%clk 0:04:36.5]}
15... Nxd5 {[%clk 0:03:56.7]} 16. Rfd1 {[%clk 0:04:34.6]} 16... cxd4 {[%clk
0:03:53.5]} 17. Nxd4 {[%clk 0:04:33.4]} 17... Rxc1 {[%clk 0:03:50.9]} 18. Rxc1
{[%clk 0:04:32.1]} 18... Bf6 {[%clk 0:03:47.7]} 19. Qc2 {[%clk 0:04:30.1]} 19...
g6 {[%clk 0:03:42.5]} 20. Ne2 {[%clk 0:04:24.4]} 20... Nb4 {[%clk 0:03:30.4]}
21. Bxf6 {[%clk 0:04:03.9]} 21... Qxf6 {[%clk 0:03:12.6]} 22. Qc5 {[%clk
0:03:57]} 22... Qb2 {[%clk 0:02:30.1]} 23. Qxb4 {[%clk 0:03:39.4]} 23... Qxe2
{[%clk 0:02:27.3]} 24. Qe1 {[%clk 0:03:34]} 24... Qg4 {[%clk 0:02:23.2]} 25. e4
{[%clk 0:03:28.8]} 25... Rd8 {[%clk 0:02:11.6]} 26. f3 {[%clk 0:03:27.5]} 26...
Qf4 {[%clk 0:02:07.3]} 27. Rd1 {[%clk 0:03:24.7]} 27... Rxd1 {[%clk 0:02:02.6]}
28. Qxd1 {[%clk 0:03:23.9]} 28... Qe3+ {[%clk 0:02:01.9]} 29. Kf1 {[%clk
0:03:23.2]} 29... b4 {[%clk 0:01:39.9]} 30. Bd3 {[%clk 0:03:18.6]} 30... a5
{[%clk 0:01:36.1]} 31. Be2 {[%clk 0:03:15.9]} 31... Kg7 {[%clk 0:01:29.7]} 32.
Qc2 {[%clk 0:03:10.2]} 32... Qd4 {[%clk 0:01:22.9]} 33. Qc7 {[%clk 0:03:03.6]}
33... Qa7 {[%clk 0:01:01.1]} 34. Bb5 {[%clk 0:02:56.2]} 34... Qa8 {[%clk
0:00:55.4]} 35. Qe5+ {[%clk 0:02:51.7]} 35... Kg8 {[%clk 0:00:52.5]} 36. Bc4
{[%clk 0:02:48]} 36... Ba6 {[%clk 0:00:43.5]} 37. Qc5 {[%clk 0:02:36.9]} 37...
Bxc4+ {[%clk 0:00:40]} 38. Qxc4 {[%clk 0:02:35.2]} 38... Qd8 {[%clk 0:00:33.1]}
39. Qc2 {[%clk 0:02:30.6]} 39... Qd4 {[%clk 0:00:30.9]} 40. Qe2 {[%clk
0:02:24.7]} 40... Kg7 {[%clk 0:00:29.1]} 41. g3 {[%clk 0:02:21.5]} 41... Kf6
{[%clk 0:00:28.4]} 42. Kg2 {[%clk 0:02:20.4]} 42... h5 {[%clk 0:00:26.8]} 43. f4
{[%clk 0:02:19.2]} 43... g5 {[%clk 0:00:22.9]} 44. e5+ {[%clk 0:02:17.6]} 44...
Kf5 {[%clk 0:00:21.2]} 45. Qxh5 {[%clk 0:01:47]} 45... Qd2+ {[%clk 0:00:16.6]}
46. Kf1 {[%clk 0:01:43.9]} 46... Qc1+ {[%clk 0:00:14.7]} 47. Kf2 {[%clk
0:01:40.7]} 47... Qc2+ {[%clk 0:00:13.6]} 48. Ke3 {[%clk 0:01:37.6]} 48... Qc1+
{[%clk 0:00:09.3]} 49. Kd3 {[%clk 0:01:30.5]} 49... Qc3+ {[%clk 0:00:08.3]} 50.
Ke2 {[%clk 0:01:29.3]} 50... Qc2+ {[%clk 0:00:07.9]} 51. Kf1 {[%clk 0:01:28.1]}
51... Qc1+ {[%clk 0:00:06.8]} 52. Kg2 {[%clk 0:01:26.8]} 52... Qd2+ {[%clk
0:00:06.4]} 53. Kh3 {[%clk 0:01:24.2]} 53... Ke4 {[%clk 0:00:05.1]} 54. fxg5
{[%clk 0:01:16.5]} 54... Qd3 {[%clk 0:00:02.5]} 55. Qh7+ {[%clk 0:01:14]} 55...
Kd4 {[%clk 0:00:01]} 56. Qxd3+ {[%clk 0:01:13.2]} 56... Kxd3 {[%clk 0:00:00.9]}
57. Kg4 {[%clk 0:01:12.8]} 57... Ke4 {[%clk 0:00:00.8]} 58. h4 {[%clk
0:01:11.7]} 58... Kxe5 {[%clk 0:00:00.5]} 59. h5 {[%clk 0:01:11.6]} 1-0

[Event "Live Chess"]
[Site "Chess.com"]
[Date "2023.05.21"]
[Round "-"]
[White "DRS44"]
[Black "tpm07"]
[Result "0-1"]
[WhiteElo "1277"]
[BlackElo "1962"]
[TimeControl "300"]
[EndTime "7:51:41 PDT"]
[Termination "tpm07 won by resignation"]

1. e4 {[%clk 0:04:42.1]} 1... e5 {[%clk 0:04:55.5]} 2. d4 {[%clk 0:04:36.6]}
2... exd4 {[%clk 0:04:53.5]} 3. c3 {[%clk 0:04:33.4]} 3... Qe7 {[%clk
0:04:52.6]} 4. cxd4 {[%clk 0:04:20.4]} 4... Qxe4+ {[%clk 0:04:47.4]} 5. Be2
{[%clk 0:04:16.6]} 5... d5 {[%clk 0:04:39.8]} 6. Nc3 {[%clk 0:04:09.1]} 6... Bb4
{[%clk 0:04:37.5]} 7. Bd2 {[%clk 0:04:02.9]} 7... Bxc3 {[%clk 0:04:36.1]} 8.
Bxc3 {[%clk 0:03:59.9]} 8... Nf6 {[%clk 0:04:34.6]} 9. Nf3 {[%clk 0:03:51.1]}
9... O-O {[%clk 0:04:31.1]} 10. O-O {[%clk 0:03:47.1]} 10... Bf5 {[%clk
0:04:19.9]} 11. Nd2 {[%clk 0:03:32.5]} 11... Qc2 {[%clk 0:04:09.8]} 12. Rc1
{[%clk 0:03:22.3]} 12... Qxd1 {[%clk 0:04:07.9]} 13. Rfxd1 {[%clk 0:03:17.9]}
13... c6 {[%clk 0:04:06.7]} 14. Bb4 {[%clk 0:03:11.5]} 14... Re8 {[%clk
0:04:02.2]} 15. Re1 {[%clk 0:03:01]} 15... Nbd7 {[%clk 0:03:59.8]} 16. Bf3
{[%clk 0:02:47.5]} 16... Rxe1+ {[%clk 0:03:56.9]} 17. Rxe1 {[%clk 0:02:43.1]}
17... Re8 {[%clk 0:03:55]} 18. Rxe8+ {[%clk 0:02:27.4]} 18... Nxe8 {[%clk
0:03:54.9]} 19. Kf1 {[%clk 0:02:22.6]} 19... Nef6 {[%clk 0:03:50.4]} 20. Be7
{[%clk 0:02:07.2]} 20... Ne4 {[%clk 0:03:37.3]} 21. Nxe4 {[%clk 0:02:00.9]}
21... Bxe4 {[%clk 0:03:29.8]} 22. Ke2 {[%clk 0:01:50.7]} 22... Bxf3+ {[%clk
0:03:27.2]} 23. Kxf3 {[%clk 0:01:47.4]} 23... f6 {[%clk 0:03:25.6]} 24. Kf4
{[%clk 0:01:39.9]} 24... Kf7 {[%clk 0:03:24.5]} 25. Ba3 {[%clk 0:01:33.9]} 25...
Nb6 {[%clk 0:03:20.2]} 26. g4 {[%clk 0:01:26.5]} 26... Nc4 {[%clk 0:03:15.1]}
27. h4 {[%clk 0:01:16.9]} 27... Nxa3 {[%clk 0:03:11.2]} 28. bxa3 {[%clk
0:01:13.4]} 28... Ke6 {[%clk 0:03:09.8]} 29. g5 {[%clk 0:01:06.8]} 29... b6
{[%clk 0:03:05.1]} 30. Kg4 {[%clk 0:01:04.9]} 30... c5 {[%clk 0:03:01.7]} 31. f4
{[%clk 0:00:54.4]} 31... fxg5 {[%clk 0:02:54]} 32. fxg5 {[%clk 0:00:47.3]} 32...
c4 {[%clk 0:02:50.5]} 33. Kf3 {[%clk 0:00:42.8]} 33... Kf5 {[%clk 0:02:49.3]}
34. Ke3 {[%clk 0:00:33.8]} 34... Kg4 {[%clk 0:02:48]} 0-1